[Event "Niedersachsen-ch Meister 2024"]
[Site "Verden Aller"]
[Date "2024.01.04"]
[Round "1.8"]
[White "Laubsch, Bernd"]
[Black "Heinemann, Ernst"]
[Result "1/2-1/2"]
[ECO "B15"]
[WhiteElo "2259"]
[BlackElo "2033"]
[Annotator "RC"]
[PlyCount "197"]
[EventDate "2024.01.01"]
[EventType "swiss"]
[EventCountry "GER"]
[SourceTitle "playchess.com"]
[Source "ChessBase"]
[SourceQuality "1"]
[TimeControl "40/5400+30:1800+30"]

1. e4 {[%emt 0:00:03]} c6 {[%emt 0:00:06]} 2. d4 {[%emt 0:00:06]} d5 {[%emt 0:00:08]} 3. Nc3 {[%emt 0:00:06]} g6 {[%emt 0:00:19]} 4. h3 {[%emt 0:00:22]} Bg7 {[%emt 0:00:26]} 5. Nf3 {[%emt 0:00:30]} Nf6 {[%emt 0:01:34]} 6. e5 {[%emt 0:00:43]} Ne4 {[%emt 0:00:30]} 7. Nxe4 {[%emt 0:01:26]} dxe4 {[%emt 0:00:05]} 8. Ng5 {[%emt 0:00:32]} c5 {[%emt 0:00:43]} 9. c3 {[%emt 0:00:56]} cxd4 {[%emt 0:10:30]} 10. cxd4 {[%emt 0:01:00]} Nc6 {[%emt 0:01:56]} 11. Be3 {[%emt 0:03:43]} Qa5+ {[%emt 0:02:26]} 12. Qd2 {[%emt 0:00:59]} Qxd2+ {[%emt 0:03:26]} 13. Kxd2 {[%emt 0:00:18]} O-O {[%emt 0:09:40]} 14. Bc4 {[%emt 0:03:16]} Na5 {[%emt 0:10:14]} 15. Be2 {[%emt 0:36:57]} Rd8 {[%emt 0:07:56]} 16. Ke1 {[%emt 0:47:33]} Nc6 {[%emt 0:07:58]} 17. Rd1 {[%emt 0:00:00]} Nb4 {[%emt 0:08:35]} 18. Bc4 {[%emt 0:00:00]} Nd5 {[%emt 0:04:41]} 19. Nxe4 {[%emt 0:00:00]} Nxe3 {[%emt 0:00:37]} 20. fxe3 {[%emt 0:00:00]} Bf5 {[%emt 0:00:57]} 21. Nc3 {[%emt 0:00:00]} Rac8 {[%emt 0:01:28]} 22. Bb3 {[%emt 0:00:00]} g5 {[%emt 0:03:11]} 23. Rf1 {[%emt 0:00:00]} e6 {[%emt 0:01:35]} 24. Ke2 {[%emt 0:00:00]} a6 {[%emt 0:06:21]} 25. g4 {[%emt 0:00:00]} Bg6 {[%emt 0:00:06]} 26. Rd2 {[%emt 0:00:00]} b5 {[%emt 0:01:06]} 27. a3 {[%emt 0:00:00]} Bf8 {[%emt 0:01:33]} 28. Bc2 {[%emt 0:00:00]} Bxa3 {[%emt 0:02:37]} 29. Bxg6 {[%emt 0:00:00]} hxg6 {[%emt 0:00:40]} 30. Nxb5 {[%emt 0:00:00]} Bb4 {[%emt 0:01:17]} 31. Nc3 {[%emt 0:00:00]} Bxc3 {[%emt 0:00:19]} 32. bxc3 {[%emt 0:00:00]} Rxc3 {[%emt 0:00:20]} 33. Ra2 {[%emt 0:00:00]} Rb8 {[%emt 0:01:51]} 34. Rf3 {[%emt 0:02:56]} Rbb3 {[%emt 0:02:10]} 35. Rxa6 {[%emt 0:01:51]} Rc2+ {[%emt 0:00:30]} 36. Kd1 {[%emt 0:00:04]} Rh2 {[%emt 0:02:20]} 37. Kc1 {[%emt 0:00:25]} Rc3+ {[%emt 0:02:01]} 38. Kb1 {[%emt 0:00:39]} Rb3+ {[%emt 0:00:46]} 39. Ka1 {[%emt 0:00:56]} Rhb2 {[%emt 0:02:34]} 40. Rf1 {[%emt 0:02:24]} Rb7 {[%emt 0:02:40]} 41. Ra8+ {[%emt 0:32:18]} Kg7 {[%emt 0:30:09]} 42. Ra7 {[%emt 0:00:16]} R2b3 {[%emt 0:02:15]} 43. Rxb7 {[%emt 0:00:50]} Rxb7 {[%emt 0:00:04]} 44. Rb1 {[%emt 0:00:00]} Rc7 {[%emt 0:00:00]} 45. Kb2 {[%emt 0:00:00]} Rc8 {[%emt 0:00:00]} 46. Rc1 {[%emt 0:00:00]} Rh8 {[%emt 0:00:00]} 47. Rh1 {[%emt 0:02:51]} Rc8 {[%emt 0:00:00]} 48. Kb3 {[%emt 0:00:00]} Kf8 {[%emt 0:00:00]} 49. Kb4 {[%emt 0:00:00]} Ke7 {[%emt 0:00:00]} 50. Ra1 {[%emt 0:00:00]} Rc7 {[%emt 0:00:00]} 51. Ra3 {[%emt 0:00:00]} Rc1 {[%emt 0:00:00]} 52. Kb5 {[%emt 0:00:00]} Rc2 {[%emt 0:00:00]} 53. Ra7+ {[%emt 0:00:00]} Ke8 {[%emt 0:00:00]} 54. e4 {[%emt 0:00:00]} Re2 {[%emt 0:00:00]} 55. d5 {[%emt 0:00:00]} Rxe4 {[%emt 0:00:00]} 56. d6 {[%emt 0:00:00]} Re1 {[%emt 0:00:00]} 57. Re7+ {[%emt 0:00:00]} Kd8 {[%emt 0:00:00]} 58. Rxf7 {[%emt 0:00:00]} Rb1+ {[%emt 0:00:00]} 59. Kc6 {[%emt 0:00:00]} Rc1+ {[%emt 0:00:00]} 60. Kb6 {[%emt 0:01:07]} Rb1+ {[%emt 0:00:00]} 61. Kc5 {[%emt 0:01:27]} Rc1+ {[%emt 0:00:00]} 62. Kd4 {[%emt 0:01:24]} Rd1+ {[%emt 0:00:00]} 63. Ke3 {[%emt 0:00:54]} Re1+ {[%emt 0:00:00]} 64. Kf2 {[%emt 0:00:01]} Rxe5 {[%emt 0:00:00]} 65. Re7 {[%emt 0:00:28]} Re4 {[%emt 0:00:00]} 66. Rg7 {[%emt 0:01:23]} Re5 {[%emt 0:00:00]} 67. Kf3 {[%emt 0:00:27]} Ke8 {[%emt 0:00:00]} 68. Rxg6 {[%emt 0:01:04]} Kd7 {[%emt 0:00:00]} 69. h4 {[%emt 0:00:33]} gxh4 {[%emt 0:00:00]} 70. Rh6 {[%emt 0:00:41]} Kxd6 {[%emt 0:00:00]} 71. Rxh4 {[%emt 0:00:06]} Ke7 {[%emt 0:00:00]} 72. Kf4 {[%emt 0:00:14]} Ra5 {[%emt 0:00:00]} 73. Rh6 {[%emt 0:01:11]} Kf7 {[%emt 0:00:00]} 74. g5 {[%emt 0:01:10]} Ra4+ {[%emt 0:00:18]} 75. Kg3 {[%emt 0:00:11]} Rb4 {[%emt 0:02:16]} 76. Rf6+ {[%emt 0:00:10]} Kg7 {[%emt 0:01:28]} 77. Rxe6 {[%emt 0:00:01]} Ra4 {[%emt 0:00:18]} 78. Rf6 {[%emt 0:00:18]} Rb4 {[%emt 0:00:35]} 79. Rf4 {[%emt 0:00:10]} Rb1 {[%emt 0:00:18]} 80. Kg4 {[%emt 0:00:21]} Rg1+ {[%emt 0:00:22]} 81. Kf5 {[%emt 0:00:18]} Ra1 {[%emt 0:00:11]} 82. Re4 {[%emt 0:00:46]} Rf1+ {[%emt 0:00:33]} 83. Kg4 {[%emt 0:00:43]} Rg1+ {[%emt 0:00:12]} 84. Kh5 {[%emt 0:00:05]} Rh1+ {[%emt 0:00:14]} 85. Rh4 {[%emt 0:00:02]} Ra1 {[%emt 0:00:18]} 86. Rh3 {[%emt 0:00:16]} Rb1 {[%emt 0:00:19]} 87. Re3 {[%emt 0:00:39]} Rh1+ {[%emt 0:00:09]} 88. Kg4 {[%emt 0:00:09]} Rg1+ {[%emt 0:00:11]} 89. Kf4 {[%emt 0:00:32]} Rf1+ {[%emt 0:00:11]} 90. Rf3 {[%emt 0:00:17]} Ra1 {[%emt 0:00:14]} 91. Kf5 {[%emt 0:00:26]} Ra5+ {[%emt 0:00:21]} 92. Kg4 {[%emt 0:00:07]} Ra1 {[%emt 0:00:29]} 93. Re3 {[%emt 0:01:31]} Rg1+ {[%emt 0:00:18]} 94. Kf4 {[%emt 0:00:21]} Rf1+ {[%emt 0:00:18]} 95. Rf3 {[%emt 0:00:12]} Ra1 {[%emt 0:00:15]} 96. Kf5 {[%emt 0:00:17]} Ra5+ {[%emt 0:00:28]} 97. Kg4 {[%emt 0:00:17]} Ra1 {[%emt 0:00:28]} 98. Kf5 {[%emt 0:00:05]} Ra5+ {[%emt 0:00:09]} 99. Ke4 {[%emt 0:00:00]} 1/2-1/2

[Event "Niedersachsen-ch Meister 2024"]
[Site "Verden Aller"]
[Date "2024.01.04"]
[Round "1.9"]
[White "Oest, Thorsten"]
[Black "Polster, Christian"]
[Result "0-1"]
[ECO "B50"]
[WhiteElo "1981"]
[BlackElo "2244"]
[Annotator "RC"]
[PlyCount "56"]
[EventDate "2024.01.01"]
[EventType "swiss"]
[EventCountry "GER"]
[SourceTitle "playchess.com"]
[Source "ChessBase"]
[SourceQuality "1"]
[TimeControl "40/5400+30:1800+30"]

1. e4 {[%emt 0:00:03]} c5 {[%emt 0:00:30]} 2. Nf3 {[%emt 0:00:12]} d6 {[%emt 0:00:04]} 3. c4 {[%emt 0:00:08]} Bg4 {[%emt 0:01:02]} 4. d4 {[%emt 0:02:11]} Bxf3 {[%emt 0:01:15]} 5. gxf3 {[%emt 0:00:47]} cxd4 {[%emt 0:00:10]} 6. Qxd4 {[%emt 0:00:09]} Nc6 {[%emt 0:00:07]} 7. Qc3 {[%emt 0:01:34]} Nf6 {[%emt 0:01:05]} 8. Bg5 {[%emt 0:00:52]} e5 {[%emt 0:01:12]} 9. Be3 {[%emt 0:08:48]} d5 {[%emt 0:06:55]} 10. Qb3 {[%emt 0:11:16]} Bb4+ {[%emt 0:11:01]} 11. Bd2 {[%emt 0:06:00]} Nd4 {[%emt 0:06:50]} 12. Qa4+ {[%emt 0:08:02]} b5 {[%emt 0:01:01]} 13. cxb5 {[%emt 0:02:25]} Nxf3+ {[%emt 0:02:54]} 14. Ke2 {[%emt 0:01:17]} Nd4+ {[%emt 0:01:24]} 15. Ke1 {[%emt 0:08:44]} Bxd2+ {[%emt 0:02:01]} 16. Nxd2 {[%emt 0:00:49]} O-O {[%emt 0:00:18]} 17. Bg2 {[%emt 0:10:54]} Nxe4 {[%emt 0:02:38]} 18. Nxe4 {[%emt 0:12:01]} dxe4 {[%emt 0:00:07]} 19. h4 {[%emt 0:00:24]} f5 {[%emt 0:01:22]} 20. Kf1 {[%emt 0:02:56]} Qd5 {[%emt 0:01:28]} 21. Rh3 {[%emt 0:03:22]} f4 {[%emt 0:05:35]} 22. Kg1 {[%emt 0:01:10]} Ne2+ {[%emt 0:04:30]} 23. Kh2 {[%emt 0:01:30]} f3 {[%emt 0:02:29]} 24. Bf1 {[%emt 0:00:12]} Qd4 {[%emt 0:00:33]} 25. Qb3+ {[%emt 0:01:25]} Kh8 {[%emt 0:00:40]} 26. Qe3 {[%emt 0:00:23]} Rad8 {[%emt 0:02:18]} 27. Bxe2 {[%emt 0:04:55]} Qxe3 {[%emt 0:00:18]} 28. fxe3 {[%emt 0:00:37]} Rd2 {[%emt 0:00:13]} 0-1

[Event "Niedersachsen-ch Meister 2024"]
[Site "Verden Aller"]
[Date "2024.01.04"]
[Round "1.10"]
[White "Gentemann, Moritz"]
[Black "Bennemann, Ingmar"]
[Result "1-0"]
[ECO "A27"]
[WhiteElo "2239"]
[BlackElo "1971"]
[Annotator "RC"]
[PlyCount "75"]
[EventDate "2024.01.01"]
[EventType "swiss"]
[EventCountry "GER"]
[SourceTitle "playchess.com"]
[Source "ChessBase"]
[SourceQuality "1"]
[TimeControl "40/5400+30:1800+30"]

1. c4 {[%emt 0:00:04]} e5 {[%emt 0:00:14]} 2. Nc3 {[%emt 0:00:10]} Nc6 {[%emt 0:00:09]} 3. Nf3 {[%emt 0:00:15]} f5 {[%emt 0:01:43]} 4. g3 {[%emt 0:00:25]} Nf6 {[%emt 0:00:05]} 5. d4 {[%emt 0:00:20]} e4 {[%emt 0:01:03]} 6. Nh4 {[%emt 0:00:14]} g6 {[%emt 0:00:06]} 7. Bg5 {[%emt 0:00:55]} Bg7 {[%emt 0:04:52]} 8. e3 {[%emt 0:02:11]} Ne7 {[%emt 0:00:25]} 9. Ng2 {[%emt 0:04:45]} h6 {[%emt 0:05:02]} 10. Bxf6 {[%emt 0:02:26]} Bxf6 {[%emt 0:00:09]} 11. Nf4 {[%emt 0:00:12]} O-O {[%emt 0:03:49]} 12. c5 {[%emt 0:43:12]} b6 {[%emt 0:01:49]} 13. b4 {[%emt 0:04:01]} Rb8 {[%emt 0:07:35]} 14. Bc4+ {[%emt 0:04:37]} Kh7 {[%emt 0:00:32]} 15. O-O {[%emt 0:00:30]} bxc5 {[%emt 0:16:02]} 16. bxc5 {[%emt 0:00:17]} d6 {[%emt 0:01:44]} 17. cxd6 {[%emt 0:09:11]} Qxd6 {[%emt 0:00:56]} 18. Nb5 {[%emt 0:09:27]} Qb4 {[%emt 0:12:00]} 19. Qc2 {[%emt 0:06:19]} Qa5 {[%emt 0:00:21]} 20. Nxc7 {[%emt 0:02:28]} Bd7 {[%emt 0:03:11]} 21. Na6 {[%emt 0:02:34]} Ba4 {[%emt 0:04:20]} 22. Qe2 {[%emt 0:01:07]} Rbc8 {[%emt 0:03:33]} 23. Ne6 {[%emt 0:00:34]} Rh8 {[%emt 0:08:52]} 24. Nac5 {[%emt 0:00:17]} Bc6 {[%emt 0:01:19]} 25. Rfc1 {[%emt 0:02:50]} Nd5 {[%emt 0:03:48]} 26. Rab1 {[%emt 0:01:14]} Rb8 {[%emt 0:01:39]} 27. Qe1 {[%emt 0:00:35]} Qxe1+ {[%emt 0:06:21]} 28. Rxe1 {[%emt 0:00:02]} Be7 {[%emt 0:00:14]} 29. Rec1 {[%emt 0:00:55]} g5 {[%emt 0:02:48]} 30. Rxb8 {[%emt 0:01:14]} Rxb8 {[%emt 0:00:10]} 31. Bb3 {[%emt 0:00:05]} Rb6 {[%emt 0:03:01]} 32. Na4 {[%emt 0:01:15]} Bxa4 {[%emt 0:01:04]} 33. Bxd5 {[%emt 0:00:02]} Bd6 {[%emt 0:02:07]} 34. g4 {[%emt 0:01:13]} Kg6 {[%emt 0:03:25]} 35. Nc5 {[%emt 0:00:16]} Bc6 {[%emt 0:02:56]} 36. gxf5+ {[%emt 0:01:02]} Kxf5 {[%emt 0:00:06]} 37. Be6+ {[%emt 0:00:36]} Kf6 {[%emt 0:00:44]} 38. d5 {[%emt 0:00:55]} 1-0

[Event "Niedersachsen-ch Meister 2024"]
[Site "Verden Aller"]
[Date "2024.01.04"]
[Round "1.11"]
[White "Hans, Julian"]
[Black "Riemay, David"]
[Result "0-1"]
[ECO "B08"]
[WhiteElo "1925"]
[BlackElo "2213"]
[Annotator "RC"]
[PlyCount "48"]
[EventDate "2024.01.01"]
[EventType "swiss"]
[EventCountry "GER"]
[SourceTitle "playchess.com"]
[Source "ChessBase"]
[SourceQuality "1"]
[TimeControl "40/5400+30:1800+30"]

1. e4 {[%emt 0:00:09]} d6 {[%emt 0:00:02]} 2. d4 {[%emt 0:00:29]} Nf6 {[%emt 0:00:05]} 3. Nc3 {[%emt 0:00:26]} g6 {[%emt 0:00:06]} 4. Nf3 {[%emt 0:00:54]} Bg7 {[%emt 0:00:10]} 5. h3 {[%emt 0:01:28]} O-O {[%emt 0:00:21]} 6. Be3 {[%emt 0:02:56]} a6 {[%emt 0:01:02]} 7. a4 {[%emt 0:01:16]} e5 {[%emt 0:16:42]} 8. dxe5 {[%emt 0:04:47]} dxe5 {[%emt 0:00:16]} 9. Bc4 {[%emt 0:06:28]} Qe7 {[%emt 0:05:31]} 10. O-O {[%emt 0:03:44]} Be6 {[%emt 0:01:00]} 11. Qe2 {[%emt 0:02:53]} Nbd7 {[%emt 0:04:32]} 12. Nd2 {[%emt 0:04:11]} Nh5 {[%emt 0:12:47]} 13. Bxe6 {[%emt 0:03:26]} fxe6 {[%emt 0:06:12]} 14. Nb3 {[%emt 0:03:34]} Nf4 {[%emt 0:01:39]} 15. Qc4 {[%emt 0:06:45]} Rf7 {[%emt 0:13:11]} 16. Nc5 {[%emt 0:06:16]} Nxc5 {[%emt 0:02:21]} 17. Qxc5 {[%emt 0:02:29]} Qh4 {[%emt 0:00:41]} 18. Qc4 {[%emt 0:07:26]} Nxh3+ {[%emt 0:06:09]} 19. gxh3 {[%emt 0:02:57]} Qxh3 {[%emt 0:00:05]} 20. Rfe1 {[%emt 0:18:56]} Qg4+ {[%emt 0:01:36]} 21. Kf1 {[%emt 0:00:43]} Raf8 {[%emt 0:02:21]} 22. Qe2 {[%emt 0:04:32]} Rf3 {[%emt 0:11:09]} 23. Red1 {[%emt 0:02:31]} Qh4 {[%emt 0:01:36]} 24. Ke1 {[%emt 0:05:41]} Bh6 {[%emt 0:00:08]} 0-1

[Event "Niedersachsen-ch Meister 2024"]
[Site "Verden Aller"]
[Date "2024.01.04"]
[Round "1.12"]
[White "Tonndorf, Matthias"]
[Black "Mimkes, Antal"]
[Result "1/2-1/2"]
[ECO "A01"]
[WhiteElo "2184"]
[BlackElo "1823"]
[Annotator "RC"]
[PlyCount "103"]
[EventDate "2024.01.01"]
[EventType "swiss"]
[EventCountry "GER"]
[SourceTitle "playchess.com"]
[Source "ChessBase"]
[SourceQuality "1"]
[TimeControl "40/5400+30:1800+30"]

1. b3 {[%emt 0:00:03]} f5 {[%emt 0:00:19]} 2. Bb2 {[%emt 0:00:08]} Nf6 {[%emt 0:00:14]} 3. Bxf6 {[%emt 0:00:16]} exf6 {[%emt 0:00:19]} 4. c4 {[%emt 0:00:36]} c6 {[%emt 0:01:34]} 5. g3 {[%emt 0:01:09]} d5 {[%emt 0:00:35]} 6. cxd5 {[%emt 0:00:48]} cxd5 {[%emt 0:07:17]} 7. Nf3 {[%emt 0:01:58]} Nc6 {[%emt 0:04:09]} 8. Bg2 {[%emt 0:00:27]} d4 {[%emt 0:01:21]} 9. O-O {[%emt 0:02:04]} Bd6 {[%emt 0:06:23]} 10. e3 {[%emt 0:03:14]} Be5 {[%emt 0:08:15]} 11. exd4 {[%emt 0:03:28]} Nxd4 {[%emt 0:03:04]} 12. Nxe5 {[%emt 0:03:26]} fxe5 {[%emt 0:00:35]} 13. Re1 {[%emt 0:00:20]} O-O {[%emt 0:01:15]} 14. Nc3 {[%emt 0:06:32]} Nc6 {[%emt 0:09:43]} 15. Bxc6 {[%emt 0:08:01]} bxc6 {[%emt 0:01:19]} 16. Rxe5 {[%emt 0:00:49]} f4 {[%emt 0:01:02]} 17. Qe2 {[%emt 0:01:36]} Qf6 {[%emt 0:08:10]} 18. Qc4+ {[%emt 0:07:58]} Kh8 {[%emt 0:01:06]} 19. Qxf4 {[%emt 0:00:24]} Qxf4 {[%emt 0:01:40]} 20. gxf4 {[%emt 0:03:42]} Bg4 {[%emt 0:01:10]} 21. Kg2 {[%emt 0:10:24]} Rxf4 {[%emt 0:03:34]} 22. h3 {[%emt 0:07:46]} Bf3+ {[%emt 0:03:15]} 23. Kg3 {[%emt 0:01:03]} Rf6 {[%emt 0:01:39]} 24. Rae1 {[%emt 0:00:39]} Raf8 {[%emt 0:00:46]} 25. h4 {[%emt 0:05:14]} Bd5 {[%emt 0:12:04]} 26. Nxd5 {[%emt 0:05:31]} Rf3+ {[%emt 0:01:09]} 27. Kg2 {[%emt 0:02:28]} Rxf2+ {[%emt 0:00:40]} 28. Kg1 {[%emt 0:00:04]} cxd5 {[%emt 0:00:13]} 29. Re8 {[%emt 0:01:34]} Kg8 {[%emt 0:03:51]} 30. Rxf8+ {[%emt 0:00:46]} Rxf8 {[%emt 0:00:02]} 31. Re5 {[%emt 0:01:15]} Rf4 {[%emt 0:02:30]} 32. Rxd5 {[%emt 0:00:12]} Rxh4 {[%emt 0:00:32]} 33. Rd8+ {[%emt 0:09:18]} Kf7 {[%emt 0:00:08]} 34. Kf2 {[%emt 0:01:06]} a5 {[%emt 0:01:44]} 35. Ra8 {[%emt 0:03:24]} Rh5 {[%emt 0:00:43]} 36. Ra6 {[%emt 0:00:08]} Rd5 {[%emt 0:01:03]} 37. Ke3 {[%emt 0:02:13]} h5 {[%emt 0:00:55]} 38. Ra8 {[%emt 0:03:25]} Kf6 {[%emt 0:02:16]} 39. d4 {[%emt 0:00:35]} h4 {[%emt 0:02:14]} 40. Rf8+ {[%emt 0:02:03]} Kg6 {[%emt 0:03:19]} 41. Rh8 {[%emt 0:34:05]} Rh5 {[%emt 0:14:04]} 42. Rxh5 {[%emt 0:00:00]} Kxh5 {[%emt 0:00:25]} 43. a3 {[%emt 0:00:00]} Kg6 {[%emt 0:00:37]} 44. b4 {[%emt 0:00:00]} axb4 {[%emt 0:00:11]} 45. axb4 {[%emt 0:00:00]} Kf5 {[%emt 0:03:52]} 46. b5 {[%emt 0:00:00]} Ke6 {[%emt 0:00:10]} 47. b6 {[%emt 0:00:00]} Kd6 {[%emt 0:01:34]} 48. d5 {[%emt 0:00:00]} g5 {[%emt 0:00:16]} 49. Kf3 {[%emt 0:00:00]} h3 {[%emt 0:01:50]} 50. Kg3 {[%emt 0:00:00]} g4 {[%emt 0:00:10]} 51. Kh2 {[%emt 0:00:00]} Kd7 {[%emt 0:00:05]} 52. Kg3 {[%emt 0:00:00]} 1/2-1/2

[Event "Niedersachsen-ch Meister 2024"]
[Site "Verden Aller"]
[Date "2024.01.04"]
[Round "1.13"]
[White "Bundan, Edward"]
[Black "Bargsten, Justus"]
[Result "1-0"]
[ECO "B30"]
[WhiteElo "1706"]
[BlackElo "2216"]
[Annotator "RC"]
[PlyCount "119"]
[EventDate "2024.01.01"]
[EventType "swiss"]
[EventCountry "GER"]
[SourceTitle "playchess.com"]
[Source "ChessBase"]
[SourceQuality "1"]
[TimeControl "40/5400+30:1800+30"]

1. e4 {[%emt 0:00:02]} c5 {[%emt 0:00:05]} 2. Nf3 {[%emt 0:00:08]} Nc6 {[%emt 0:00:06]} 3. Bb5 {[%emt 0:00:23]} e6 {[%emt 0:00:07]} 4. O-O {[%emt 0:00:39]} Nge7 {[%emt 0:00:06]} 5. d4 {[%emt 0:01:50]} cxd4 {[%emt 0:01:13]} 6. Nxd4 {[%emt 0:00:20]} Qb6 {[%emt 0:01:56]} 7. Bxc6 {[%emt 0:01:48]} bxc6 {[%emt 0:02:21]} 8. Nc3 {[%emt 0:01:33]} e5 {[%emt 0:04:40]} 9. Nb3 {[%emt 0:01:21]} Ng6 {[%emt 0:01:40]} 10. Be3 {[%emt 0:01:31]} Qc7 {[%emt 0:00:06]} 11. Qd2 {[%emt 0:02:42]} Be7 {[%emt 0:00:54]} 12. Rad1 {[%emt 0:01:01]} d6 {[%emt 0:00:19]} 13. f4 {[%emt 0:02:16]} exf4 {[%emt 0:01:19]} 14. Bxf4 {[%emt 0:02:06]} Nxf4 {[%emt 0:00:05]} 15. Qxf4 {[%emt 0:00:24]} O-O {[%emt 0:01:04]} 16. Nd4 {[%emt 0:08:53]} Bf6 {[%emt 0:01:52]} 17. Kh1 {[%emt 0:18:38]} Rb8 {[%emt 0:02:36]} 18. b3 {[%emt 0:11:57]} Be5 {[%emt 0:01:24]} 19. Qd2 {[%emt 0:02:58]} Bg4 {[%emt 0:04:06]} 20. Nf3 {[%emt 0:04:28]} Rbd8 {[%emt 0:02:14]} 21. h3 {[%emt 0:02:56]} Bh5 {[%emt 0:02:06]} 22. Qg5 {[%emt 0:03:39]} Bxc3 {[%emt 0:03:28]} 23. Qxh5 {[%emt 0:00:13]} Qe7 {[%emt 0:01:30]} 24. Rd3 {[%emt 0:01:27]} g6 {[%emt 0:03:09]} 25. Qg5 {[%emt 0:01:26]} Bf6 {[%emt 0:02:48]} 26. Qf4 {[%emt 0:01:16]} Bg7 {[%emt 0:11:56]} 27. Nd4 {[%emt 0:05:03]} Rc8 {[%emt 0:05:00]} 28. Nf3 {[%emt 0:02:17]} Rcd8 {[%emt 0:18:11]} 29. Nd4 {[%emt 0:01:03]} Qc7 {[%emt 0:06:36]} 30. c4 {[%emt 0:00:54]} Be5 {[%emt 0:01:04]} 31. Qf3 {[%emt 0:00:36]} Rde8 {[%emt 0:02:54]} 32. Rfd1 {[%emt 0:01:45]} Re7 {[%emt 0:03:36]} 33. Qg4 {[%emt 0:01:09]} Bg7 {[%emt 0:07:48]} 34. Ne2 {[%emt 0:02:20]} Rfe8 {[%emt 0:00:18]} 35. Ng3 {[%emt 0:00:14]} h5 {[%emt 0:01:15]} 36. Qf4 {[%emt 0:03:11]} Be5 {[%emt 0:01:32]} 37. Qg5 {[%emt 0:00:54]} Bxg3 {[%emt 0:03:15]} 38. Qxg3 {[%emt 0:00:11]} Rxe4 {[%emt 0:00:56]} 39. Qxd6 {[%emt 0:00:18]} Qb6 {[%emt 0:00:55]} 40. c5 {[%emt 0:01:37]} Qa5 {[%emt 0:00:08]} 41. Qxc6 {[%emt 0:33:11]} Qb4 {[%emt 0:32:49]} 42. Rd4 {[%emt 0:03:55]} Re1+ {[%emt 0:00:00]} 43. Kh2 {[%emt 0:00:00]} Qc3 {[%emt 0:00:00]} 44. Rxe1 {[%emt 0:00:00]} Rxe1 {[%emt 0:00:00]} 45. Qf6 {[%emt 0:00:00]} Re8 {[%emt 0:00:00]} 46. Rf4 {[%emt 0:00:00]} Qe5 {[%emt 0:00:00]} 47. Qxf7+ {[%emt 0:00:00]} Kh8 {[%emt 0:00:00]} 48. Qf6+ {[%emt 0:00:00]} Qxf6 {[%emt 0:00:00]} 49. Rxf6 {[%emt 0:00:00]} Kg7 {[%emt 0:00:00]} 50. Rc6 {[%emt 0:00:00]} Re7 {[%emt 0:00:00]} 51. Rc8 {[%emt 0:00:00]} Kf7 {[%emt 0:00:00]} 52. b4 {[%emt 0:00:00]} Ke6 {[%emt 0:00:00]} 53. Rc6+ {[%emt 0:00:00]} Kd5 {[%emt 0:00:00]} 54. Rxg6 {[%emt 0:00:00]} Kc4 {[%emt 0:00:00]} 55. a3 {[%emt 0:00:00]} a5 {[%emt 0:00:00]} 56. bxa5 {[%emt 0:00:00]} Ra7 {[%emt 0:00:00]} 57. a6 {[%emt 0:00:00]} Kxc5 {[%emt 0:00:00]} 58. Rg5+ {[%emt 0:00:00]} Kd4 {[%emt 0:00:00]} 59. Rxh5 {[%emt 0:00:00]} Rxa6 {[%emt 0:00:00]} 60. Rh4+ {[%emt 0:00:00]} 1-0

[Event "Niedersachsen-ch Meister 2024"]
[Site "Verden Aller"]
[Date "2024.01.04"]
[Round "1.14"]
[White "Nechitaylo, Nikita"]
[Black "Muecke, Leonard"]
[Result "1-0"]
[ECO "E80"]
[WhiteElo "2221"]
[BlackElo "1694"]
[Annotator "RC"]
[PlyCount "63"]
[EventDate "2024.01.01"]
[EventType "swiss"]
[EventCountry "GER"]
[SourceTitle "playchess.com"]
[Source "ChessBase"]
[SourceQuality "1"]
[TimeControl "40/5400+30:1800+30"]

1. d4 {[%emt 0:00:01]} g6 {[%emt 0:00:09]} 2. e4 {[%emt 0:00:16]} d6 {[%emt 0:00:09]} 3. c4 {[%emt 0:00:05]} Nf6 {[%emt 0:00:23]} 4. Nc3 {[%emt 0:00:05]} Bg7 {[%emt 0:00:06]} 5. f3 {[%emt 0:00:04]} Nfd7 {[%emt 0:00:31]} 6. h4 {[%emt 0:03:44]} e5 {[%emt 0:11:26]} 7. d5 {[%emt 0:00:06]} a5 {[%emt 0:00:33]} 8. Be3 {[%emt 0:00:28]} Na6 {[%emt 0:01:33]} 9. Bd3 {[%emt 0:00:00]} Ndc5 {[%emt 0:00:32]} 10. Bc2 {[%emt 0:00:08]} h5 {[%emt 0:02:04]} 11. a3 {[%emt 0:05:37]} Bd7 {[%emt 0:02:14]} 12. Rb1 {[%emt 0:00:45]} b6 {[%emt 0:03:48]} 13. b4 {[%emt 0:01:40]} Nb7 {[%emt 0:01:32]} 14. Ba4 {[%emt 0:03:11]} axb4 {[%emt 0:20:39]} 15. axb4 {[%emt 0:00:51]} Bh6 {[%emt 0:13:54]} 16. Bxh6 {[%emt 0:00:38]} Rxh6 {[%emt 0:01:46]} 17. Bc6 {[%emt 0:00:02]} Qc8 {[%emt 0:01:46]} 18. Qa4 {[%emt 0:11:39]} Nac5 {[%emt 0:03:39]} 19. Qc2 {[%emt 0:01:35]} Na6 {[%emt 0:01:25]} 20. Qa4 {[%emt 0:00:08]} Nac5 {[%emt 0:01:49]} 21. Qb5 {[%emt 0:00:21]} Na6 {[%emt 0:18:02]} 22. Ra1 {[%emt 0:01:29]} Bxc6 {[%emt 0:00:24]} 23. dxc6 {[%emt 0:02:47]} Nd8 {[%emt 0:00:20]} 24. Nd5 {[%emt 0:01:44]} Ne6 {[%emt 0:03:57]} 25. Qa4 {[%emt 0:00:10]} Rh8 {[%emt 0:02:19]} 26. b5 {[%emt 0:01:06]} Nec5 {[%emt 0:00:43]} 27. Qd1 {[%emt 0:00:41]} f5 {[%emt 0:00:24]} 28. bxa6 {[%emt 0:01:06]} fxe4 {[%emt 0:00:22]} 29. fxe4 {[%emt 0:00:25]} Nxe4 {[%emt 0:01:05]} 30. Qf3 {[%emt 0:00:19]} Nc5 {[%emt 0:00:33]} 31. Qf6 {[%emt 0:00:31]} Nd3+ {[%emt 0:01:07]} 32. Kd2 {[%emt 0:00:08]} 1-0

[Event "Niedersachsen-ch Meister 2024"]
[Site "Verden Aller"]
[Date "2024.01.04"]
[Round "2.1"]
[White "Abel, Dennes"]
[Black "Gentemann, Moritz"]
[Result "1-0"]
[ECO "A17"]
[WhiteElo "2417"]
[BlackElo "2239"]
[Annotator "RC"]
[PlyCount "55"]
[EventDate "2024.01.01"]
[EventType "swiss"]
[EventCountry "GER"]
[SourceTitle "playchess.com"]
[Source "ChessBase"]
[SourceQuality "1"]
[TimeControl "40/5400+30:1800+30"]

1. Nf3 {[%emt 0:00:04]} d5 {[%emt 0:05:09]} 2. e3 {[%emt 0:00:10]} Nf6 {[%emt 0:00:14]} 3. c4 {[%emt 0:00:06]} e6 {[%emt 0:00:22]} 4. Nc3 {[%emt 0:00:08]} Bd6 {[%emt 0:01:09]} 5. b3 {[%emt 0:00:22]} O-O {[%emt 0:00:39]} 6. Bb2 {[%emt 0:00:08]} c5 {[%emt 0:00:48]} 7. cxd5 {[%emt 0:02:39]} exd5 {[%emt 0:00:20]} 8. d4 {[%emt 0:00:43]} cxd4 {[%emt 0:00:43]} 9. Nxd4 {[%emt 0:01:32]} Nc6 {[%emt 0:00:25]} 10. Be2 {[%emt 0:06:07]} Re8 {[%emt 0:01:47]} 11. Nxc6 {[%emt 0:06:29]} bxc6 {[%emt 0:00:11]} 12. O-O {[%emt 0:00:20]} h5 {[%emt 0:10:00]} 13. Bf3 {[%emt 0:10:39]} Ng4 {[%emt 0:23:12]} 14. g3 {[%emt 0:03:53]} Qg5 {[%emt 0:09:33]} 15. h4 {[%emt 0:06:42]} Qe7 {[%emt 0:13:16]} 16. Ne2 {[%emt 0:01:27]} Ba6 {[%emt 0:09:02]} 17. Re1 {[%emt 0:15:14]} Bb4 {[%emt 0:06:49]} 18. Nc3 {[%emt 0:04:01]} Ne5 {[%emt 0:04:52]} 19. Be2 {[%emt 0:01:41]} Bxe2 {[%emt 0:00:10]} 20. Qxe2 {[%emt 0:00:05]} Qf6 {[%emt 0:03:25]} 21. Kg2 {[%emt 0:01:18]} Qg6 {[%emt 0:00:08]} 22. Red1 {[%emt 0:09:39]} Re6 {[%emt 0:01:45]} 23. Rac1 {[%emt 0:11:45]} Rae8 {[%emt 0:02:19]} 24. Qc2 {[%emt 0:00:56]} Qg4 {[%emt 0:01:40]} 25. Rd4 {[%emt 0:07:27]} Qf3+ {[%emt 0:00:09]} 26. Kg1 {[%emt 0:00:05]} Rg6 {[%emt 0:03:20]} 27. Ne2 {[%emt 0:03:18]} Ng4 {[%emt 0:00:43]} 28. Rf4 {[%emt 0:01:17]} 1-0